[Event "Titled Tuesday Blitz February 22 Early 2022"]
[White "Demchenko, Anton"]
[Black "Papp, Levente"]
[WhiteFideId "4160258"]
[BlackFideId "751243"]
[WhiteElo "2539"]
[BlackElo "2308"]
[Result "1-0"]
[Round "05"]
[TimeControl "180+1"]
[Date "2022.02.22"]
[WhiteClock "0:00:10"]
[BlackClock "0:00:08"]

1. e4 {[%clk 0:03:00]}  e6 {[%clk 0:02:59]} 2. d4 {[%clk 0:03:00]}  d5 {[%clk 0:03:00]} 3. Nd2 {[%clk 0:03:00]}  Nc6 {[%clk 0:02:57]} 4. Ngf3 {[%clk 0:03:00]}  Nf6 {[%clk 0:02:58]} 5. e5 {[%clk 0:03:00]}  Nd7 {[%clk 0:02:58]} 6. Bd3 {[%clk 0:02:59]}  f6 {[%clk 0:02:57]} 7. Ng5 {[%clk 0:02:58]}  Ndxe5 {[%clk 0:02:53]} 8. dxe5 {[%clk 0:02:58]}  fxg5 {[%clk 0:02:53]} 9. Qh5+ {[%clk 0:02:58]}  Kd7 {[%clk 0:02:53]} 10. Nf3 {[%clk 0:02:11]}  Qe8 {[%clk 0:02:34]} 11. Qxg5 {[%clk 0:02:07]}  Nb4 {[%clk 0:02:30]} 12. Bb5+ {[%clk 0:01:37]}  c6 {[%clk 0:02:29]} 13. Ba4 {[%clk 0:01:38]}  b5 {[%clk 0:01:43]} 14. Bb3 {[%clk 0:01:37]}  Qg6 {[%clk 0:01:43]} 15. Qxg6 {[%clk 0:01:27]}  hxg6 {[%clk 0:01:44]} 16. a3 {[%clk 0:01:28]}  Na6 {[%clk 0:01:43]} 17. c3 {[%clk 0:01:28]}  Nc5 {[%clk 0:01:03]} 18. Bc2 {[%clk 0:01:29]}  a5 {[%clk 0:00:59]} 19. O-O {[%clk 0:01:20]}  Be7 {[%clk 0:00:54]} 20. Be3 {[%clk 0:01:08]}  Na4 {[%clk 0:00:32]} 21. Rab1 {[%clk 0:01:07]}  c5 {[%clk 0:00:31]} 22. Rfd1 {[%clk 0:01:02]}  Nb6 {[%clk 0:00:29]} 23. Bxg6 {[%clk 0:01:01]}  Nc4 {[%clk 0:00:27]} 24. Bf4 {[%clk 0:01:01]}  a4 {[%clk 0:00:26]} 25. Nd2 {[%clk 0:00:58]}  Kc6 {[%clk 0:00:25]} 26. g3 {[%clk 0:00:57]}  Bd7 {[%clk 0:00:18]} 27. h4 {[%clk 0:00:54]}  Be8 {[%clk 0:00:18]} 28. Bxe8+ {[%clk 0:00:37]}  Rhxe8 {[%clk 0:00:17]} 29. Nf3 {[%clk 0:00:38]}  Reb8 {[%clk 0:00:13]} 30. Ne1 {[%clk 0:00:30]}  Kd7 {[%clk 0:00:13]} 31. Nd3 {[%clk 0:00:29]}  b4 {[%clk 0:00:13]} 32. cxb4 {[%clk 0:00:26]}  cxb4 {[%clk 0:00:13]} 33. axb4 {[%clk 0:00:27]}  Bxb4 {[%clk 0:00:14]} 34. b3 {[%clk 0:00:26]}  Na3 {[%clk 0:00:12]} 35. Rb2 {[%clk 0:00:23]}  axb3 {[%clk 0:00:08]} 36. Rxb3 {[%clk 0:00:23]}  Be7 {[%clk 0:00:09]} 37. Rxb8 {[%clk 0:00:21]}  Rxb8 {[%clk 0:00:10]} 38. Kg2 {[%clk 0:00:21]}  Nc4 {[%clk 0:00:10]} 39. Ra1 {[%clk 0:00:21]}  Ke8 {[%clk 0:00:10]} 40. Bg5 {[%clk 0:00:15]}  Rb3 {[%clk 0:00:09]} 41. Ra8+ {[%clk 0:00:13]}  Kd7 {[%clk 0:00:07]} 42. Ra7+ {[%clk 0:00:14]}  Kc6 {[%clk 0:00:07]} 43. Rxe7 {[%clk 0:00:12]}  Rxd3 {[%clk 0:00:08]} 44. Rxe6+ {[%clk 0:00:13]}  Kb5 {[%clk 0:00:08]} 45. Re7 {[%clk 0:00:10]}  Rd2 {[%clk 0:00:08]} 46. Bxd2 {[%clk 0:00:10]} 1-0


[Site "https://www.chess.com"]

[Event "Titled Tuesday Blitz February 22 Early 2022"]
[White "Dev, Shah"]
[Black "Dew, Brian"]
[WhiteFideId "35019058"]
[BlackFideId "6000495"]
[WhiteElo "2098"]
[BlackElo "2118"]
[Result "1-0"]
[Round "05"]
[TimeControl "180+1"]
[Date "2022.02.22"]
[WhiteClock "0:01:16"]
[BlackClock "0:00:01"]

1. d4 {[%clk 0:03:00]}  g6 {[%clk 0:02:57]} 2. c4 {[%clk 0:03:00]}  Bg7 {[%clk 0:02:53]} 3. Nf3 {[%clk 0:03:01]}  Nf6 {[%clk 0:02:51]} 4. Nc3 {[%clk 0:02:59]}  d5 {[%clk 0:02:51]} 5. cxd5 {[%clk 0:02:58]}  Nxd5 {[%clk 0:02:51]} 6. e4 {[%clk 0:02:59]}  Nxc3 {[%clk 0:02:52]} 7. bxc3 {[%clk 0:03:00]}  c5 {[%clk 0:02:49]} 8. Be3 {[%clk 0:03:00]}  cxd4 {[%clk 0:02:44]} 9. cxd4 {[%clk 0:02:58]}  Qa5+ {[%clk 0:02:43]} 10. Qd2 {[%clk 0:02:53]}  Qxd2+ {[%clk 0:02:43]} 11. Kxd2 {[%clk 0:02:54]}  Nc6 {[%clk 0:02:25]} 12. Bb5 {[%clk 0:02:50]}  Bd7 {[%clk 0:02:24]} 13. Rab1 {[%clk 0:02:45]}  b6 {[%clk 0:02:15]} 14. Rhc1 {[%clk 0:02:40]}  Na5 {[%clk 0:01:44]} 15. Rc7 {[%clk 0:02:29]}  Bxb5 {[%clk 0:01:43]} 16. Rxb5 {[%clk 0:02:30]}  e6 {[%clk 0:01:38]} 17. Kd1 {[%clk 0:02:02]}  O-O {[%clk 0:00:24]} 18. Bd2 {[%clk 0:02:01]}  Rfd8 {[%clk 0:00:23]} 19. d5 {[%clk 0:02:00]}  exd5 {[%clk 0:00:20]} 20. exd5 {[%clk 0:02:01]}  a6 {[%clk 0:00:18]} 21. Rxb6 {[%clk 0:01:41]}  Rxd5 {[%clk 0:00:18]} 22. Kc2 {[%clk 0:01:26]}  Rad8 {[%clk 0:00:18]} 23. Rxa6 {[%clk 0:01:24]}  Bf8 {[%clk 0:00:02]} 24. Rxa5 {[%clk 0:01:17]}  Rxd2+ {[%clk 0:00:01]} 25. Nxd2 {[%clk 0:01:16]} 1-0


[Site "https://www.chess.com"]

[Event "Titled Tuesday Blitz February 22 Early 2022"]
[White "Do Nascimento,Christian Almeida"]
[Black "De Souza Sa, Apolo"]
[WhiteFideId "2143801"]
[BlackFideId "324225390"]
[WhiteElo "2108"]
[BlackElo "1828"]
[Result "1-0"]
[Round "05"]
[TimeControl "180+1"]
[Date "2022.02.22"]
[WhiteClock "0:02:10"]
[BlackClock "0:01:40"]

1. d4 {[%clk 0:03:00]}  Nf6 {[%clk 0:02:58]} 2. Bg5 {[%clk 0:02:59]}  Ne4 {[%clk 0:02:56]} 3. Bf4 {[%clk 0:02:59]}  d5 {[%clk 0:02:56]} 4. e3 {[%clk 0:02:59]}  c5 {[%clk 0:02:53]} 5. Bd3 {[%clk 0:02:58]}  Nc6 {[%clk 0:02:47]} 6. Bxe4 {[%clk 0:02:57]}  dxe4 {[%clk 0:02:47]} 7. d5 {[%clk 0:02:57]}  Nb4 {[%clk 0:02:43]} 8. Nc3 {[%clk 0:02:55]}  e6 {[%clk 0:02:38]} 9. dxe6 {[%clk 0:02:47]}  Qxd1+ {[%clk 0:02:23]} 10. Kxd1 {[%clk 0:02:48]}  Bxe6 {[%clk 0:02:21]} 11. a3 {[%clk 0:02:34]}  O-O-O+ {[%clk 0:02:14]} 12. Kc1 {[%clk 0:02:34]}  Nd5 {[%clk 0:02:14]} 13. Nxe4 {[%clk 0:02:32]}  Nxf4 {[%clk 0:02:14]} 14. exf4 {[%clk 0:02:32]}  h6 {[%clk 0:02:04]} 15. Nf3 {[%clk 0:02:25]}  Bf5 {[%clk 0:01:59]} 16. Re1 {[%clk 0:02:15]}  Be7 {[%clk 0:01:50]} 17. Ng3 {[%clk 0:02:10]}  Be6 {[%clk 0:01:40]} 18. f5 {[%clk 0:02:10]} 1-0


[Site "https://www.chess.com"]

[Event "Titled Tuesday Blitz February 22 Early 2022"]
[White "Wagner, Dinara"]
[Black "Rodchenkov, Vitaly"]
[WhiteFideId "24157570"]
[BlackFideId "4152964"]
[WhiteElo "2216"]
[BlackElo "2337"]
[Result "1-0"]
[Round "05"]
[TimeControl "180+1"]
[Date "2022.02.22"]
[WhiteClock "0:02:26"]
[BlackClock "0:02:11"]

1. d4 {[%clk 0:02:37]}  Nf6 {[%clk 0:02:55]} 2. Nf3 {[%clk 0:02:37]}  b6 {[%clk 0:02:55]} 3. c4 {[%clk 0:02:36]}  Bb7 {[%clk 0:02:55]} 4. a3 {[%clk 0:02:37]}  g6 {[%clk 0:02:53]} 5. Nc3 {[%clk 0:02:36]}  Bg7 {[%clk 0:02:54]} 6. d5 {[%clk 0:02:37]}  e6 {[%clk 0:02:52]} 7. e4 {[%clk 0:02:37]}  exd5 {[%clk 0:02:52]} 8. cxd5 {[%clk 0:02:37]}  O-O {[%clk 0:02:51]} 9. Bd3 {[%clk 0:02:37]}  Re8 {[%clk 0:02:51]} 10. O-O {[%clk 0:02:37]}  d6 {[%clk 0:02:52]} 11. Bc2 {[%clk 0:02:37]}  Nbd7 {[%clk 0:02:50]} 12. Nd4 {[%clk 0:02:37]}  a5 {[%clk 0:02:43]} 13. Rb1 {[%clk 0:02:34]}  h5 {[%clk 0:02:36]} 14. Re1 {[%clk 0:02:33]}  Ng4 {[%clk 0:02:23]} 15. h3 {[%clk 0:02:30]}  Nxf2 {[%clk 0:02:20]} 16. Kxf2 {[%clk 0:02:27]}  Qf6+ {[%clk 0:02:19]} 17. Nf3 {[%clk 0:02:27]}  Ne5 {[%clk 0:02:11]} 18. Bg5 {[%clk 0:02:26]} 1-0


[Site "https://www.chess.com"]

[Event "Titled Tuesday Blitz February 22 Early 2022"]
[White "Dovbnia, Nikita"]
[Black "Omariev, Maksim"]
[WhiteFideId "54104599"]
[BlackFideId "4193423"]
[WhiteElo "2111"]
[BlackElo "2501"]
[Result "1/2-1/2"]
[Round "05"]
[TimeControl "180+1"]
[Date "2022.02.22"]
[WhiteClock "0:00:14"]
[BlackClock "0:00:01"]

1. Nf3 {[%clk 0:02:58]}  c5 {[%clk 0:03:00]} 2. g3 {[%clk 0:02:50]}  d5 {[%clk 0:03:00]} 3. Bg2 {[%clk 0:02:51]}  Nc6 {[%clk 0:02:59]} 4. d3 {[%clk 0:02:51]}  e5 {[%clk 0:02:59]} 5. O-O {[%clk 0:02:52]}  f6 {[%clk 0:02:58]} 6. c4 {[%clk 0:02:52]}  d4 {[%clk 0:02:58]} 7. Nbd2 {[%clk 0:02:50]}  Bd6 {[%clk 0:02:58]} 8. a3 {[%clk 0:02:50]}  Nge7 {[%clk 0:02:58]} 9. Rb1 {[%clk 0:02:50]}  O-O {[%clk 0:02:55]} 10. Ne4 {[%clk 0:02:50]}  a5 {[%clk 0:02:54]} 11. Nfd2 {[%clk 0:02:49]}  Be6 {[%clk 0:02:52]} 12. Nxd6 {[%clk 0:02:47]}  Qxd6 {[%clk 0:02:49]} 13. Ne4 {[%clk 0:02:48]}  Qc7 {[%clk 0:02:49]} 14. Nxc5 {[%clk 0:02:48]}  Bg4 {[%clk 0:02:49]} 15. h3 {[%clk 0:02:41]}  Bf5 {[%clk 0:02:46]} 16. b4 {[%clk 0:02:36]}  axb4 {[%clk 0:02:44]} 17. axb4 {[%clk 0:02:37]}  b6 {[%clk 0:02:43]} 18. Ne4 {[%clk 0:02:30]}  Ra2 {[%clk 0:02:39]} 19. b5 {[%clk 0:02:19]}  Na5 {[%clk 0:02:36]} 20. Re1 {[%clk 0:02:11]}  Nb7 {[%clk 0:02:33]} 21. Qb3 {[%clk 0:02:09]}  Rfa8 {[%clk 0:02:34]} 22. Bb2 {[%clk 0:02:03]}  Bxe4 {[%clk 0:02:10]} 23. Bxe4 {[%clk 0:01:54]}  Nc5 {[%clk 0:02:11]} 24. Qc2 {[%clk 0:01:47]}  Nxe4 {[%clk 0:01:41]} 25. dxe4 {[%clk 0:01:47]}  Nc8 {[%clk 0:01:28]} 26. Ra1 {[%clk 0:01:43]}  Nd6 {[%clk 0:01:25]} 27. Rxa2 {[%clk 0:01:37]}  Rxa2 {[%clk 0:01:26]} 28. Rc1 {[%clk 0:01:35]}  Ra8 {[%clk 0:00:44]} 29. f3 {[%clk 0:01:17]}  Rc8 {[%clk 0:00:43]} 30. Ba3 {[%clk 0:01:03]}  Nxc4 {[%clk 0:00:42]} 31. Qb3 {[%clk 0:01:04]}  Kh8 {[%clk 0:00:39]} 32. Bd6 {[%clk 0:00:56]}  Qf7 {[%clk 0:00:30]} 33. Bb4 {[%clk 0:00:42]}  Kg8 {[%clk 0:00:22]} 34. Ra1 {[%clk 0:00:31]}  h5 {[%clk 0:00:20]} 35. h4 {[%clk 0:00:30]}  Kh7 {[%clk 0:00:18]} 36. Ra6 {[%clk 0:00:19]}  Qg6 {[%clk 0:00:18]} 37. Kg2 {[%clk 0:00:18]}  Ne3+ {[%clk 0:00:18]} 38. Kf2 {[%clk 0:00:18]}  Rc1 {[%clk 0:00:16]} 39. Be1 {[%clk 0:00:16]}  Nd1+ {[%clk 0:00:03]} 40. Kf1 {[%clk 0:00:15]}  Ne3+ {[%clk 0:00:03]} 41. Kf2 {[%clk 0:00:15]}  Nd1+ {[%clk 0:00:03]} 42. Kg2 {[%clk 0:00:14]}  Ne3+ {[%clk 0:00:01]} 43. Kf2 {[%clk 0:00:14]} 1/2-1/2


[Site "https://www.chess.com"]

[Event "Titled Tuesday Blitz February 22 Early 2022"]
[White "Dreev, Aleksey"]
[Black "Vidit, Santosh Gujrathi"]
[WhiteFideId "4100107"]
[BlackFideId "5029465"]
[WhiteElo "2636"]
[BlackElo "2654"]
[Result "0-1"]
[Round "05"]
[TimeControl "180+1"]
[Date "2022.02.22"]
[WhiteClock "0:00:07"]
[BlackClock "0:00:13"]

1. d4 {[%clk 0:03:00]}  Nf6 {[%clk 0:02:59]} 2. c4 {[%clk 0:02:59]}  e6 {[%clk 0:03:00]} 3. Nc3 {[%clk 0:02:59]}  Bb4 {[%clk 0:03:00]} 4. Qc2 {[%clk 0:02:59]}  O-O {[%clk 0:03:00]} 5. a3 {[%clk 0:02:59]}  Bxc3+ {[%clk 0:03:00]} 6. Qxc3 {[%clk 0:03:00]}  d5 {[%clk 0:03:01]} 7. Nf3 {[%clk 0:02:59]}  dxc4 {[%clk 0:03:01]} 8. Qxc4 {[%clk 0:03:00]}  b6 {[%clk 0:03:01]} 9. Bg5 {[%clk 0:03:00]}  Bb7 {[%clk 0:03:01]} 10. e3 {[%clk 0:02:53]}  Nbd7 {[%clk 0:03:00]} 11. Be2 {[%clk 0:02:49]}  h6 {[%clk 0:02:59]} 12. Bh4 {[%clk 0:02:49]}  c5 {[%clk 0:02:56]} 13. O-O {[%clk 0:02:44]}  Bd5 {[%clk 0:02:53]} 14. Qa4 {[%clk 0:02:33]}  a6 {[%clk 0:02:53]} 15. Bxf6 {[%clk 0:02:28]}  Nxf6 {[%clk 0:02:47]} 16. dxc5 {[%clk 0:02:28]}  bxc5 {[%clk 0:02:47]} 17. Rfc1 {[%clk 0:02:22]}  Qb6 {[%clk 0:02:46]} 18. b4 {[%clk 0:02:22]}  Rfc8 {[%clk 0:02:37]} 19. bxc5 {[%clk 0:02:05]}  Rxc5 {[%clk 0:02:37]} 20. Qb4 {[%clk 0:02:04]}  Rxc1+ {[%clk 0:02:28]} 21. Rxc1 {[%clk 0:02:04]}  Qxb4 {[%clk 0:02:17]} 22. axb4 {[%clk 0:02:03]}  Rb8 {[%clk 0:02:09]} 23. Nd4 {[%clk 0:02:00]}  Rxb4 {[%clk 0:02:01]} 24. Bxa6 {[%clk 0:01:59]}  g6 {[%clk 0:01:59]} 25. f3 {[%clk 0:01:52]}  Kg7 {[%clk 0:01:53]} 26. Kf2 {[%clk 0:01:49]}  e5 {[%clk 0:01:45]} 27. Ne2 {[%clk 0:01:44]}  e4 {[%clk 0:01:44]} 28. Nc3 {[%clk 0:01:36]}  Rb2+ {[%clk 0:01:32]} 29. Be2 {[%clk 0:01:32]}  Bc4 {[%clk 0:01:08]} 30. h3 {[%clk 0:01:22]}  Nd5 {[%clk 0:00:48]} 31. Ke1 {[%clk 0:00:29]}  Bxe2 {[%clk 0:00:48]} 32. Nxd5 {[%clk 0:00:17]}  exf3 {[%clk 0:00:47]} 33. Nf4 {[%clk 0:00:17]}  g5 {[%clk 0:00:18]} 34. Nxe2 {[%clk 0:00:17]}  Rxe2+ {[%clk 0:00:18]} 35. Kf1 {[%clk 0:00:17]}  Rxg2 {[%clk 0:00:18]} 36. Rc4 {[%clk 0:00:12]}  Rg3 {[%clk 0:00:17]} 37. h4 {[%clk 0:00:11]}  g4 {[%clk 0:00:18]} 38. h5 {[%clk 0:00:12]}  Rg2 {[%clk 0:00:17]} 39. Rf4 {[%clk 0:00:12]}  f6 {[%clk 0:00:16]} 40. e4 {[%clk 0:00:12]}  Kf7 {[%clk 0:00:17]} 41. e5 {[%clk 0:00:13]}  f5 {[%clk 0:00:15]} 42. Rxf5+ {[%clk 0:00:12]}  Ke6 {[%clk 0:00:16]} 43. Rf6+ {[%clk 0:00:10]}  Kxe5 {[%clk 0:00:17]} 44. Rf8 {[%clk 0:00:08]}  Rh2 {[%clk 0:00:14]} 45. Kg1 {[%clk 0:00:07]}  Rxh5 {[%clk 0:00:13]} 0-1


[Site "https://www.chess.com"]

[Event "Titled Tuesday Blitz February 22 Early 2022"]
[White "Dwilewicz, Katarzyna"]
[Black "Zhu, Jiner"]
[WhiteFideId "1148486"]
[BlackFideId "8608059"]
[WhiteElo "1907"]
[BlackElo "2281"]
[Result "1/2-1/2"]
[Round "05"]
[TimeControl "180+1"]
[Date "2022.02.22"]
[WhiteClock "0:00:04"]
[BlackClock "0:00:17"]

1. e4 {[%clk 0:02:59]}  e5 {[%clk 0:02:56]} 2. Nf3 {[%clk 0:02:58]}  Nc6 {[%clk 0:02:56]} 3. Nc3 {[%clk 0:02:57]}  Nf6 {[%clk 0:02:55]} 4. d4 {[%clk 0:02:56]}  exd4 {[%clk 0:02:55]} 5. Nxd4 {[%clk 0:02:54]}  Bb4 {[%clk 0:02:53]} 6. Nxc6 {[%clk 0:02:54]}  bxc6 {[%clk 0:02:52]} 7. Bd3 {[%clk 0:02:54]}  O-O {[%clk 0:02:52]} 8. O-O {[%clk 0:02:53]}  d5 {[%clk 0:02:49]} 9. exd5 {[%clk 0:02:52]}  cxd5 {[%clk 0:02:49]} 10. Bg5 {[%clk 0:02:49]}  c6 {[%clk 0:02:45]} 11. Qf3 {[%clk 0:02:48]}  Bd6 {[%clk 0:02:39]} 12. Rfe1 {[%clk 0:02:46]}  Rb8 {[%clk 0:02:38]} 13. b3 {[%clk 0:02:46]}  h6 {[%clk 0:02:33]} 14. Bxf6 {[%clk 0:02:43]}  Qxf6 {[%clk 0:02:33]} 15. Qxf6 {[%clk 0:02:44]}  gxf6 {[%clk 0:02:34]} 16. Ne2 {[%clk 0:02:44]}  c5 {[%clk 0:02:18]} 17. Rad1 {[%clk 0:02:35]}  Be6 {[%clk 0:02:14]} 18. Ng3 {[%clk 0:02:34]}  Rfe8 {[%clk 0:02:13]} 19. f3 {[%clk 0:02:19]}  Bf8 {[%clk 0:02:11]} 20. Bf1 {[%clk 0:02:00]}  a5 {[%clk 0:02:08]} 21. a4 {[%clk 0:01:59]}  f5 {[%clk 0:01:58]} 22. Bb5 {[%clk 0:01:58]}  Red8 {[%clk 0:01:56]} 23. Kf1 {[%clk 0:01:39]}  Bg7 {[%clk 0:01:49]} 24. Nh5 {[%clk 0:01:32]}  Bc3 {[%clk 0:01:45]} 25. Re2 {[%clk 0:01:32]}  Rb6 {[%clk 0:01:37]} 26. Nf4 {[%clk 0:01:26]}  Kg7 {[%clk 0:01:33]} 27. Rd3 {[%clk 0:01:20]}  d4 {[%clk 0:01:25]} 28. Rd1 {[%clk 0:01:12]}  Kf6 {[%clk 0:01:17]} 29. g3 {[%clk 0:01:04]}  Rbd6 {[%clk 0:01:11]} 30. Kf2 {[%clk 0:00:56]}  Bc8 {[%clk 0:01:09]} 31. Nd3 {[%clk 0:00:39]}  Bb4 {[%clk 0:00:50]} 32. Nxb4 {[%clk 0:00:37]}  axb4 {[%clk 0:00:47]} 33. Rde1 {[%clk 0:00:32]}  Be6 {[%clk 0:00:47]} 34. Re5 {[%clk 0:00:26]}  Rc8 {[%clk 0:00:42]} 35. R5e2 {[%clk 0:00:18]}  Rb6 {[%clk 0:00:39]} 36. f4 {[%clk 0:00:16]}  Rc7 {[%clk 0:00:38]} 37. Rd2 {[%clk 0:00:16]}  Rb8 {[%clk 0:00:37]} 38. h3 {[%clk 0:00:15]}  Ke7 {[%clk 0:00:37]} 39. Bc4 {[%clk 0:00:14]}  Kd6 {[%clk 0:00:37]} 40. Bxe6 {[%clk 0:00:14]}  fxe6 {[%clk 0:00:38]} 41. Rde2 {[%clk 0:00:15]}  Re8 {[%clk 0:00:36]} 42. g4 {[%clk 0:00:15]}  fxg4 {[%clk 0:00:35]} 43. hxg4 {[%clk 0:00:16]}  Rf7 {[%clk 0:00:34]} 44. Kg3 {[%clk 0:00:16]}  Rf6 {[%clk 0:00:34]} 45. f5 {[%clk 0:00:14]}  e5 {[%clk 0:00:32]} 46. Re4 {[%clk 0:00:06]}  Kd5 {[%clk 0:00:32]} 47. R1e2 {[%clk 0:00:06]}  Re7 {[%clk 0:00:31]} 48. Re1 {[%clk 0:00:06]}  Rc6 {[%clk 0:00:30]} 49. Kh4 {[%clk 0:00:05]}  Re8 {[%clk 0:00:25]} 50. Kh5 {[%clk 0:00:04]}  Rf6 {[%clk 0:00:24]} 51. R1e2 {[%clk 0:00:03]}  Kd6 {[%clk 0:00:24]} 52. Re1 {[%clk 0:00:03]}  Re7 {[%clk 0:00:23]} 53. R1e2 {[%clk 0:00:03]}  Kd5 {[%clk 0:00:22]} 54. Re1 {[%clk 0:00:04]}  Re8 {[%clk 0:00:21]} 55. R1e2 {[%clk 0:00:04]}  Rc6 {[%clk 0:00:20]} 56. Re1 {[%clk 0:00:04]}  Ra6 {[%clk 0:00:20]} 57. R1e2 {[%clk 0:00:04]}  Rc6 {[%clk 0:00:17]} 58. Re1 {[%clk 0:00:04]} 1/2-1/2


[Site "https://www.chess.com"]

[Event "Titled Tuesday Blitz February 22 Early 2022"]
[White "Elissalt Cardenas, Hector"]
[Black "Van den Dikkenberg, Erik"]
[WhiteFideId "3500632"]
[BlackFideId "1005880"]
[WhiteElo "2159"]
[BlackElo "2118"]
[Result "1/2-1/2"]
[Round "05"]
[TimeControl "180+1"]
[Date "2022.02.22"]
[WhiteClock "0:00:14"]
[BlackClock "0:00:18"]

1. d3 {[%clk 0:02:45]}  c5 {[%clk 0:02:56]} 2. Nf3 {[%clk 0:02:38]}  Nf6 {[%clk 0:02:55]} 3. e4 {[%clk 0:02:37]}  d6 {[%clk 0:02:53]} 4. Be2 {[%clk 0:02:36]}  g6 {[%clk 0:02:53]} 5. b3 {[%clk 0:02:30]}  Bg7 {[%clk 0:02:54]} 6. Bb2 {[%clk 0:02:30]}  Bf8 {[%clk 0:02:55]} 7. O-O {[%clk 0:02:25]}  Bg7 {[%clk 0:02:56]} 8. Nbd2 {[%clk 0:02:25]}  O-O {[%clk 0:02:54]} 9. Re1 {[%clk 0:02:22]}  Nc6 {[%clk 0:02:52]} 10. Bf1 {[%clk 0:02:21]}  e5 {[%clk 0:02:49]} 11. c3 {[%clk 0:02:18]}  Bd7 {[%clk 0:02:40]} 12. d4 {[%clk 0:02:13]}  cxd4 {[%clk 0:02:37]} 13. cxd4 {[%clk 0:02:13]}  Re8 {[%clk 0:02:34]} 14. Nc4 {[%clk 0:02:09]}  Bg4 {[%clk 0:02:29]} 15. dxe5 {[%clk 0:02:05]}  Bxf3 {[%clk 0:02:26]} 16. Qxf3 {[%clk 0:02:01]}  dxe5 {[%clk 0:02:19]} 17. Rad1 {[%clk 0:01:52]}  Nd4 {[%clk 0:02:19]} 18. Bxd4 {[%clk 0:01:52]}  exd4 {[%clk 0:02:18]} 19. e5 {[%clk 0:01:51]}  Nd7 {[%clk 0:01:58]} 20. Qxb7 {[%clk 0:01:35]}  Nxe5 {[%clk 0:01:48]} 21. Nxe5 {[%clk 0:01:20]}  Bxe5 {[%clk 0:01:42]} 22. Bc4 {[%clk 0:01:19]}  Re7 {[%clk 0:01:27]} 23. Qf3 {[%clk 0:01:18]}  Qd6 {[%clk 0:01:19]} 24. g3 {[%clk 0:01:14]}  Rae8 {[%clk 0:01:13]} 25. Kg2 {[%clk 0:01:12]}  Qf6 {[%clk 0:01:10]} 26. Re4 {[%clk 0:00:58]}  Qxf3+ {[%clk 0:01:06]} 27. Kxf3 {[%clk 0:00:58]}  Kg7 {[%clk 0:00:58]} 28. Rde1 {[%clk 0:00:54]}  f5 {[%clk 0:00:55]} 29. R4e2 {[%clk 0:00:53]}  Bf6 {[%clk 0:00:54]} 30. Rxe7+ {[%clk 0:00:52]}  Rxe7 {[%clk 0:00:54]} 31. Rxe7+ {[%clk 0:00:49]}  Bxe7 {[%clk 0:00:54]} 32. Ke2 {[%clk 0:00:49]}  Bb4 {[%clk 0:00:52]} 33. Kd3 {[%clk 0:00:47]}  Bc3 {[%clk 0:00:51]} 34. f4 {[%clk 0:00:43]}  a5 {[%clk 0:00:50]} 35. h3 {[%clk 0:00:40]}  h6 {[%clk 0:00:49]} 36. g4 {[%clk 0:00:40]}  fxg4 {[%clk 0:00:49]} 37. hxg4 {[%clk 0:00:40]}  Kf6 {[%clk 0:00:49]} 38. Bd5 {[%clk 0:00:38]}  h5 {[%clk 0:00:42]} 39. gxh5 {[%clk 0:00:36]}  gxh5 {[%clk 0:00:42]} 40. Be4 {[%clk 0:00:35]}  h4 {[%clk 0:00:41]} 41. Ke2 {[%clk 0:00:33]}  Bb4 {[%clk 0:00:35]} 42. Kf3 {[%clk 0:00:33]}  Be1 {[%clk 0:00:31]} 43. Bd3 {[%clk 0:00:33]}  Bd2 {[%clk 0:00:29]} 44. Kg4 {[%clk 0:00:32]}  Be3 {[%clk 0:00:24]} 45. a3 {[%clk 0:00:31]}  Bd2 {[%clk 0:00:22]} 46. Be4 {[%clk 0:00:26]}  Bc1 {[%clk 0:00:21]} 47. a4 {[%clk 0:00:25]}  Bd2 {[%clk 0:00:20]} 48. Bd3 {[%clk 0:00:25]}  Bc1 {[%clk 0:00:18]} 49. Be4 {[%clk 0:00:20]}  Bd2 {[%clk 0:00:18]} 50. Bd3 {[%clk 0:00:16]}  Bc1 {[%clk 0:00:18]} 51. Be4 {[%clk 0:00:14]} 1/2-1/2


[Site "https://www.chess.com"]

[Event "Titled Tuesday Blitz February 22 Early 2022"]
[White "Eynullayev, Altay"]
[Black "Palu, Andres"]
[WhiteFideId "13413562"]
[BlackFideId "119288"]
[WhiteElo "2079"]
[BlackElo "2050"]
[Result "1/2-1/2"]
[Round "05"]
[TimeControl "180+1"]
[Date "2022.02.22"]
[WhiteClock "0:00:49"]
[BlackClock "0:00:38"]

1. e4 {[%clk 0:03:00]}  c5 {[%clk 0:02:49]} 2. Nf3 {[%clk 0:03:00]}  Nc6 {[%clk 0:02:47]} 3. Bb5 {[%clk 0:02:59]}  g6 {[%clk 0:02:47]} 4. Bxc6 {[%clk 0:02:58]}  bxc6 {[%clk 0:02:48]} 5. O-O {[%clk 0:02:57]}  Bg7 {[%clk 0:02:46]} 6. Re1 {[%clk 0:02:57]}  Nf6 {[%clk 0:02:46]} 7. h3 {[%clk 0:02:56]}  O-O {[%clk 0:02:46]} 8. c3 {[%clk 0:02:55]}  d5 {[%clk 0:02:46]} 9. e5 {[%clk 0:02:56]}  Nd7 {[%clk 0:02:46]} 10. d4 {[%clk 0:02:56]}  cxd4 {[%clk 0:02:46]} 11. cxd4 {[%clk 0:02:55]}  c5 {[%clk 0:02:46]} 12. Be3 {[%clk 0:02:54]}  c4 {[%clk 0:02:46]} 13. Nc3 {[%clk 0:02:43]}  e6 {[%clk 0:02:45]} 14. b3 {[%clk 0:02:42]}  cxb3 {[%clk 0:02:43]} 15. axb3 {[%clk 0:02:42]}  Nb6 {[%clk 0:02:41]} 16. Qd2 {[%clk 0:02:32]}  Bd7 {[%clk 0:02:39]} 17. Bh6 {[%clk 0:02:31]}  Qe7 {[%clk 0:02:37]} 18. Bxg7 {[%clk 0:02:27]}  Kxg7 {[%clk 0:02:38]} 19. Ne2 {[%clk 0:02:16]}  Rfc8 {[%clk 0:02:24]} 20. Ng3 {[%clk 0:02:13]}  Rc7 {[%clk 0:02:20]} 21. h4 {[%clk 0:02:10]}  h5 {[%clk 0:02:18]} 22. Re3 {[%clk 0:02:07]}  Rac8 {[%clk 0:02:16]} 23. Ng5 {[%clk 0:02:01]}  Rc2 {[%clk 0:02:14]} 24. Qd1 {[%clk 0:02:00]}  f6 {[%clk 0:01:52]} 25. exf6+ {[%clk 0:01:59]}  Qxf6 {[%clk 0:01:53]} 26. Rf3 {[%clk 0:01:55]}  Qe7 {[%clk 0:01:42]} 27. Rf7+ {[%clk 0:01:51]}  Qxf7 {[%clk 0:01:42]} 28. Nxf7 {[%clk 0:01:52]}  Kxf7 {[%clk 0:01:43]} 29. Qf3+ {[%clk 0:01:47]}  Kg7 {[%clk 0:01:42]} 30. Qf4 {[%clk 0:01:48]}  Rf8 {[%clk 0:01:37]} 31. Qe5+ {[%clk 0:01:47]}  Kh7 {[%clk 0:01:35]} 32. Rxa7 {[%clk 0:01:42]}  Rfxf2 {[%clk 0:01:33]} 33. Rb7 {[%clk 0:01:19]}  Rxg2+ {[%clk 0:01:31]} 34. Kf1 {[%clk 0:01:16]}  Rcf2+ {[%clk 0:01:10]} 35. Ke1 {[%clk 0:01:14]}  Rb2 {[%clk 0:01:06]} 36. Kf1 {[%clk 0:00:51]}  Rbf2+ {[%clk 0:00:59]} 37. Ke1 {[%clk 0:00:51]}  Rb2 {[%clk 0:00:49]} 38. Kf1 {[%clk 0:00:49]}  Rbf2+ {[%clk 0:00:38]} 1/2-1/2


[Site "https://www.chess.com"]